Cogmind - Beta 12 @@@ ROGUE MODE // 2023.12.04 @ 08:17:16 Player: Dosh Result: Self-destructed Performance ------------- Evolutions (5) 2500 Regions Visited (10) 2000 Robots Destroyed (200) 1000 Value Destroyed (6232) 6232 Prototype IDs (26) 520 Alien Tech Used (0) 0 Bonus (1024) 1024 TOTAL SCORE: 13276 Bonus ------- High Alert Combat Kills 498 Follower Combat Kills 388 Aligned with FarCom 300 Friendly Fire -162 Cogmind --------- Core Integrity 361/1000 Matter 21/300 Energy 730/730 System Corruption 26% Temperature Cool (0) Movement Treading (480) Ox4 Location -5/Factory Parts ------- > --- POWER (2) -------- Nuclear Core Nuclear Core > --- PROPULSION (4) --- Improved Treads Improved Treads > --- UTILITY (9) ------ Improved Heat Sink Huge Storage Unit Huge Storage Unit Energy Well Backup Plating III Layered Light Armor Plating Hacking Suite Advanced System Shield > --- WEAPON (2) ------- Quantum Rifle Proton Cannon > --- INVENTORY (25) --- Cooled Ion Engine Micro Nuclear Core Light Angular Momentum Engine Light Angular Momentum Engine High-capacity Matter Pod (0) Structural Scanner Improved Terrain Scanner Modified TNC Advanced ECM Suite Heavy Hammer Peak State ------------ > --- POWER ------------ Neutrino Core Micro Fission Core > --- PROPULSION ------- Improved Medium Treads Antigrav System Antigrav System Antigrav System > --- UTILITY ---------- Huge Storage Unit Energy Well Backup Plating III Backup Plating III Layered Light Armor Plating Force Field Hacking Suite Hacking Suite Improved Hacking Suite > --- WEAPON ----------- Heavy Assault Cannon > --- INVENTORY -------- Cooled Ion Engine Nuclear Core Nuclear Core Micro Nuclear Core Light Angular Momentum Engine Light Angular Momentum Engine Wheel Compact Wheel Compact Wheel Improved Heat Sink Huge Storage Unit High-capacity Matter Pod Structural Scanner Improved Terrain Scanner Modified TNC Advanced ECM Suite Layered Light Armor Plating Quantum Rifle Proton Cannon Heavy Assault Cannon Enhanced Gauss Cannon Heavy Missile Launcher Heavy Hammer [Rating: 81] Favorites ----------- Power Heavy Deuterium Engine Engine Heavy Deuterium Engine Power Core Micro Nuclear Core Propulsion Light Treads Treads Light Treads Wheel Wheel Hover Unit Antigrav System Utility Hacking Suite Device Shield Generator Storage Huge Storage Unit Processor Salvage Targeting Computer Hackware Hacking Suite Protection Layered Light Armor Plating Weapon Heavy Assault Cannon Energy Gun Quantum Rifle Energy Cannon Proton Cannon Ballistic Gun Light Assault Rifle Ballistic Cannon Heavy Assault Cannon Launcher Heavy Missile Launcher Build | -11 -10 -10 -9 -9 -9 -8 -8 -7 -6 -5 ------- Run | Jun Mat Min Mat Min Exi Min Mat Fac Fac Fac Slots Evolved 10 | . . . 2 . . . 2 2 2 2 Power 1 | . . . . . . . . 1 . . Propulsion 2 | . . . . . . . 1 . 1 . Utility 7 | . . . 2 . . . 1 1 1 2 Weapon . | . . . . . . . . . . . Parts Attached 134 | 6 9 2 21 11 . 4 14 9 22 36 Power 24 | 1 2 1 5 1 . 1 3 3 3 4 Engine 12 | 1 1 . 3 1 . 1 2 . 3 . Core 12 | . 1 1 2 . . . 1 3 . 4 Reactor . | . . . . . . . . . . . Propulsion 29 | 2 1 . 4 1 . 1 5 1 6 8 Treads 21 | 2 1 . 4 1 . 1 3 1 6 2 Leg . | . . . . . . . . . . . Wheel 5 | . . . . . . . 2 . . 3 Hover 3 | . . . . . . . . . . 3 Flight . | . . . . . . . . . . . Utility 44 | 1 3 . 9 2 . 1 5 4 9 10 Device 8 | . . . . . . . 2 . 4 2 Storage 10 | 1 1 . 1 1 . . 2 1 1 2 Processor 3 | . 2 . . . . . . . . 1 Hackware 8 | . . . 2 . . . . 1 3 2 Protection 15 | . . . 6 1 . 1 1 2 1 3 Artifact . | . . . . . . . . . . . Weapon 37 | 2 3 1 3 7 . 1 1 1 4 14 Energy Gun 3 | . . . . . . . . . . 3 Energy Cannon 2 | . . . . . . . . . . 2 Ballistic Gun 4 | 2 2 . . . . . . . . . Ballistic Cannon 20 | . 1 1 2 4 . 1 1 1 3 6 Launcher 8 | . . . 1 3 . . . . 1 3 Special Weapon . | . . . . . . . . . . . Impact Weapon . | . . . . . . . . . . . Slashing Weapon . | . . . . . . . . . . . Piercing Weapon . | . . . . . . . . . . . Special Melee Weapon . | . . . . . . . . . . . Unidentified Prototypes 3 | . . . 2 . . . 1 . . . Parts Lost 48 | . 3 . 8 2 . 2 1 1 8 23 Power 8 | . 2 . 2 1 . . . . . 3 Propulsion 20 | . . . 3 1 . 1 1 . 5 9 Utility 15 | . . . 2 . . 1 . 1 3 8 Weapon 5 | . 1 . 1 . . . . . . 3 Highest Loss Streak 12 | . 2 . 2 1 . 1 1 1 4 12 To Critical Strikes 1 | . . . . . . 1 . . . . Average Slot Usage (%) 88 | . 95 100 84 83 88 87 86 91 88 86 Engine 6 | . 6 4 3 6 11 11 8 7 6 6 Core 3 | . 5 9 3 . . . . 7 5 3 Treads 20 | . 28 28 20 21 22 21 15 23 22 12 Wheel 1 | . . . . . . . 8 . . . Device 4 | . . . . . . . 8 7 6 10 Storage 9 | . 14 14 11 11 11 11 9 7 6 11 Processor 2 | . 11 14 5 . . . . . . 1 Hackware 18 | . . . 16 22 22 22 18 23 25 16 Protection 7 | . . . 10 10 11 10 9 6 5 7 Ballistic Gun 3 | . 27 15 3 . . . . . . . Ballistic Cannon 7 | . . 12 10 10 11 10 8 7 5 4 Naked Turns . | . . . . . . . . . . . Heaviest Build 200 | 12 27 33 44 40 40 46 72 117 125 200 Greatest Support 90 | 40 40 40 43 43 43 43 60 68 90 70 Greatest Overweight (x) 11 | . . . 1 1 . 1 6 1 1 11 Average Overweight (x) . | . . . . . . . 2 1 1 1 Largest Inventory Capacity 25 | 8 15 15 15 15 15 15 20 25 25 25 Average Capacity 19 | 6 12 15 15 15 15 15 18 24 25 25 Most Carried 25 | 4 11 15 15 15 14 15 20 25 25 25 Average Carried 17 | 2 8 13 14 14 13 13 16 21 23 23 Final Capacity 25 | 8 15 15 15 15 15 15 20 25 25 25 Final Carried 25 | 4 11 15 15 14 14 13 19 25 25 10 Class Distribution -------------------- 63% | Hacker-Mutant 19% | Mutant 16% | Scavenger-Mutant Dominant Class ---------------- Mutant | -10/Materials Mutant | -10/Mines Mutant | -9/Materials Hacker-Mutant | -9/Mines Hacker-Mutant | -9/Exiles Scavenger-Mutant | -8/Mines Scavenger-Mutant | -8/Materials Hacker-Mutant | -7/Factory Hacker-Mutant | -6/Factory Hacker-Mutant | -5/Factory Resources | -11 -10 -10 -9 -9 -9 -8 -8 -7 -6 -5 ----------- Run | Jun Mat Min Mat Min Exi Min Mat Fac Fac Fac Matter Collected 5442 | 208 318 97 958 357 . 130 759 530 1276 809 Remotely . | . . . . . . . . . . . Salvage Created 5028 | . 435 42 977 182 . 142 831 334 548 1537 Parts 334 | . 29 2 71 27 . 5 57 18 37 88 Haulers Intercepted 8 | . . . 5 . . . 1 . 1 1 Recyclers Shooed 4 | . 1 . 2 . . 1 . . . . Parts Field Recycled . | . . . . . . . . . . . Retrieved Matter . | . . . . . . . . . . . Parts Self-Destructed . | . . . . . . . . . . . Prevented . | . . . . . . . . . . . Kills | -11 -10 -10 -9 -9 -9 -8 -8 -7 -6 -5 ------- Run | Jun Mat Min Mat Min Exi Min Mat Fac Fac Fac Combat Hostiles Destroyed 127 | . 9 1 25 22 . 4 18 9 17 22 Guns 15 | . 8 1 2 . . . . . . 4 Cannons 88 | . 1 . 19 10 . 4 17 9 14 14 AOE 23 | . . . 4 12 . . . . 3 4 Classes Destroyed 16 | . 4 1 5 1 . 1 2 1 . 1 Worker 18 | . . 1 2 1 . . . 1 2 11 Builder 11 | . . . 2 . . . 2 . 1 6 Tunneler 2 | . . . . 1 . . . . . 1 Hauler 8 | . . . 5 . . . 1 . 1 1 Recycler 7 | . . . . . . . 2 2 . 3 Mechanic 3 | . . . . . . . 2 . . 1 Operator 6 | . 2 . 2 . . . 1 1 . . Watcher 18 | . 3 . 4 . . . 4 . 3 4 Swarmer 38 | . 2 . 4 20 . . 3 . 5 4 Grunt 49 | . 7 1 13 2 . 3 10 4 3 6 Brawler 4 | . . . 1 . . . . . 2 1 Duelist 2 | . . . . . . . . . . 2 Protector 1 | . . . 1 . . . . . . . Sentry 12 | . . . 6 . . . 3 1 2 . Hunter 7 | . . . . . . 1 2 . 1 3 Programmer 14 | . . . . . . . . 4 4 6 Best Kill Streak 12 | . 2 2 5 7 . 3 9 3 3 12 Combat Bots Only 8 | . 2 1 4 6 . 3 5 3 3 8 Max Kills in Single Turn 5 | . 1 1 4 4 . 1 3 1 2 5 Gunslinging . | . . . . . . . . . . . Exploded 4 | . . . 3 4 . . . . 2 3 Melee . | . . . . . . . . . . . Uniques/NPCs Destroyed . | . . . . . . . . . . . Combat | -11 -10 -10 -9 -9 -9 -8 -8 -7 -6 -5 -------- Run | Jun Mat Min Mat Min Exi Min Mat Fac Fac Fac Damage Taken 8310 | . 617 122 1292 642 . 303 428 772 1568 2566 Core 1281 | . 100 . 156 60 . . 50 89 187 639 Absorbed by Shields 1989 | . . . . . . . 165 327 561 936 Redirected to Shielding 33 | . . . 33 . . . . . . . Regen/Repaired (Parts) 1128 | . . . 152 . . . 629 . 136 211 Core Remaining (%) 76 | 100 . 60 . . . 46 90 87 78 . Volleys Fired 586 | . 72 10 108 38 . 13 78 68 98 101 Largest 2 | . 2 2 2 1 . 1 1 1 1 2 Hottest 169 | . 59 68 68 60 . 60 60 60 60 169 Shots Fired 725 | . 143 21 144 38 . 13 78 69 98 121 Gun 211 | . 138 10 43 . . . . . . 20 Cannon 498 | . 5 11 99 33 . 13 78 69 95 95 Launcher 16 | . . . 2 5 . . . . 3 6 Special . | . . . . . . . . . . . Kinetic 679 | . 143 21 142 33 . 13 78 69 95 85 Thermal 20 | . . . . . . . . . . 20 Explosive 16 | . . . 2 5 . . . . 3 6 Electromagnetic 10 | . . . . . . . . . . 10 Robot Hit Streak 15 | . 9 2 9 7 . 3 5 10 15 6 Robot Miss Streak 6 | . 5 4 5 6 . 2 4 5 4 6 Penetration Max 1 | . . . 1 . . . . . 1 1 Secondary Targets . | . . . . . . . . . . . Shots Hit Robots 426 | . 87 8 87 21 . 8 39 43 63 70 Core Hits 224 | . 32 2 48 17 . 4 25 10 21 65 Critical Kills 1 | . . . 1 . . . . . . . Critical Parts Destroyed 2 | . . 1 1 . . . . . . . Critical Strikes 44 | . 1 1 10 3 . 1 3 5 8 12 Destroy 3 | . . 1 2 . . . . . . . Blast 41 | . 1 . 8 3 . 1 3 5 8 12 Melee Attacks . | . . . . . . . . . . . Impact . | . . . . . . . . . . . Slashing . | . . . . . . . . . . . Piercing . | . . . . . . . . . . . Sneak Attacks . | . . . . . . . . . . . Combat Hostiles . | . . . . . . . . . . . Follow-up Attacks . | . . . . . . . . . . . Damage Inflicted 20826 | . 748 180 3519 1835 . 372 2463 2553 3882 5274 Guns 1269 | . 655 43 210 . . . . . . 361 Cannons 15264 | . 85 125 2845 1066 . 370 2192 2414 3516 2651 Explosions 4022 | . . . 412 760 . . 256 92 262 2240 Melee . | . . . . . . . . . . . Ramming 271 | . 8 12 52 9 . 2 15 47 104 22 Kinetic 16104 | . 740 168 3055 1066 . 370 2192 2414 3516 2583 Thermal 1190 | . . . . . . . 256 . . 934 Explosive 2832 | . . . 275 760 . . . . 262 1535 Electromagnetic 429 | . . . 137 . . . . 92 . 200 Impact . | . . . . . . . . . . . Slashing . | . . . . . . . . . . . Piercing . | . . . . . . . . . . . Highest Corruption 26 | . 3 3 . . . . . 2 10 26 Average Corruption 5 | . 2 3 . . . . . 1 8 11 Corruption Purged . | . . . . . . . . . . . Corruption Blocked . | . . . . . . . . . . . Effects 98 | . 22 9 . . . . . 1 35 31 Message Errors 23 | . 5 1 . . . . . . 11 6 Matter Fused 27 | . 6 2 . . . . . . 11 8 Heat Flow Errors 13 | . 4 2 . . . . . . 5 2 Energy Discharges 10 | . 1 . . . . . . . 4 5 Parts Rejected 2 | . 1 . . . . . . . 1 . Data Loss (minor) 9 | . 2 1 . . . . . . 2 4 Data Loss (major) 5 | . 1 2 . . . . . . 1 1 Misfires 5 | . 2 1 . . . . . 1 . 1 Weapon Failures 4 | . . . . . . . . . . 4 Overload Shots . | . . . . . . . . . . . Overflow Damage 2108 | . 10 . 247 381 . 21 306 420 373 350 Projectiles 1589 | . 10 . 239 334 . 21 146 409 373 57 Explosions 519 | . . . 8 47 . . 160 11 . 293 Melee . | . . . . . . . . . . . Knockbacks 81 | . . 2 12 8 . 3 6 17 19 14 Impact 4 | . . . . 1 . . . 1 2 . Kinetic 70 | . . 2 10 7 . 3 5 13 17 13 Secondary 7 | . . . 2 . . . 1 3 . 1 Self-Inflicted Damage 484 | . . . 36 13 . . 55 36 36 308 Shots 11 | . . . 1 1 . . 1 2 2 4 Rammed 34 | . 3 1 9 1 . 1 2 5 10 2 Targets Rammed 37 | . 3 1 9 1 . 1 2 6 12 2 Kicked . | . . . . . . . . . . . Crushed 3 | . . . . . . . . 1 2 . Highest Temperature 855 | . 237 204 270 81 . 227 179 334 235 855 Average Temperature 80 | . 30 93 43 29 . 93 46 123 62 137 Received Heat Transfer 1996 | . 306 69 444 45 . 99 170 259 280 324 Effects 24 | . . . . . . . . 3 . 21 Shutdowns 3 | . . . . . . . . 1 . 2 Energy Bleed 2 | . . . . . . . . 1 . 1 Interference 3 | . . . . . . . . 1 . 2 Matter Decay 2 | . . . . . . . . . . 2 Short Circuit 1 | . . . . . . . . . . 1 Damage (minor) 2 | . . . . . . . . . . 2 Damage (major) 10 | . . . . . . . . . . 10 Damage (core) 1 | . . . . . . . . . . 1 Siege Activations . | . . . . . . . . . . . Robots Corrupted . | . . . . . . . . . . . Combat Hostiles . | . . . . . . . . . . . Parts Fried . | . . . . . . . . . . . Impact Corruptions 2 | . . . . . . . 1 1 . . Robots Melted . | . . . . . . . . . . . Combat Hostiles . | . . . . . . . . . . . Parts Melted 3 | . . . 2 . . . . . . 1 Heat Transferred 957 | . . . . . . . 150 . . 807 Parts Sabotaged . | . . . . . . . . . . . Parts Stolen . | . . . . . . . . . . . Parts Stripped . | . . . . . . . . . . . Power Chain Reactions 1 | . . . . . . . . . . 1 Missiles Intercepted . | . . . . . . . . . . . Alert | -11 -10 -10 -9 -9 -9 -8 -8 -7 -6 -5 ------- Run | Jun Mat Min Mat Min Exi Min Mat Fac Fac Fac Peak Influence 1105 | . 181 54 545 759 . 102 290 195 197 1105 Initial 212 | . . 11 . 212 . . . 129 49 82 Average 177 | . 48 41 340 533 . 35 115 72 57 370 Maximum Alert Level 4 | . . . 2 3 . . 1 . . 4 Low Security (%) 71 | 100 100 100 12 . . 100 81 100 100 48 Level 1 14 | . . . 48 32 . . 18 . . 17 Level 2 9 | . . . 38 49 . . . . . 2 Level 3 5 | . . . . 17 . . . . . 30 Level 4 . | . . . . . . . . . . . Level 5 . | . . . . . . . . . . . High Security . | . . . . . . . . . . . Max Security . | . . . . . . . . . . . Squads Dispatched 38 | . 2 . 8 . . . 3 7 9 9 Investigation 11 | . 1 . 4 . . . 2 1 2 1 Extermination 13 | . . . . . . . . 4 6 3 Reinforcement 11 | . 1 . 3 . . . 1 2 1 3 Assault 3 | . . . 1 . . . . . . 2 Garrison . | . . . . . . . . . . . Intercept . | . . . . . . . . . . . Searches Triggered . | . . . . . . . . . . . Construction Impeded 5 | . . . . . . . . 1 1 3 Haulers Reinforced . | . . . . . . . . . . . Active Scanning Responses . | . . . . . . . . . . . Cargo Convoy Interrupts 1 | . . . . . . . . . . 1 Stealth | -11 -10 -10 -9 -9 -9 -8 -8 -7 -6 -5 --------- Run | Jun Mat Min Mat Min Exi Min Mat Fac Fac Fac Distress Signals 6 | . . . . . . . 2 . 2 2 Communications Jammed . | . . . . . . . . . . . Distress Signals . | . . . . . . . . . . . Times Spotted 240 | . 21 2 53 34 . 4 29 15 38 44 Peak Tracking Total 9 | . 6 2 6 9 . 3 3 3 4 6 Tactical Retreats 23 | . 2 . 2 8 . . 2 1 7 1 Traps | -11 -10 -10 -9 -9 -9 -8 -8 -7 -6 -5 ------- Run | Jun Mat Min Mat Min Exi Min Mat Fac Fac Fac Traps Triggered 10 | . 3 . 4 . . . . . 3 . Indirectly . | . . . . . . . . . . . Trap Hack Attempts . | . . . . . . . . . . . Triggered . | . . . . . . . . . . . Disarmed . | . . . . . . . . . . . Reprogrammed . | . . . . . . . . . . . Reused . | . . . . . . . . . . . Traps Extracted . | . . . . . . . . . . . Installed . | . . . . . . . . . . . Triggered 1 | . . . . . . . . . . 1 Machines | -11 -10 -10 -9 -9 -9 -8 -8 -7 -6 -5 ---------- Run | Jun Mat Min Mat Min Exi Min Mat Fac Fac Fac Machines Disabled 65 | . . . 5 . . . 6 6 3 45 Max in Single Turn 8 | . . . 1 . . . 3 3 1 8 Machines Repaired . | . . . . . . . . . . . Machines Sabotaged . | . . . . . . . . . . . Overloaded Fab Kills . | . . . . . . . . . . . Hacking | -11 -10 -10 -9 -9 -9 -8 -8 -7 -6 -5 --------- Run | Jun Mat Min Mat Min Exi Min Mat Fac Fac Fac Machines Accessed 45 | . 5 . 10 . 1 . 10 4 12 3 Terminals 29 | . 5 . 6 . . . 7 3 7 1 Fabricators 1 | . . . . . . . . . . 1 Repair Stations 7 | . . . 2 . . . 2 . 2 1 Recycling Units 3 | . . . . . . . . 1 2 . Scanalyzers 3 | . . . 2 . . . 1 . . . Garrison Access 1 | . . . . . . . . . 1 . Total Hacks 122 | . 10 . 34 . 1 . 33 10 28 6 Successful 82 | . 4 . 23 . 1 . 25 7 18 4 Failed 40 | . 6 . 11 . . . 8 3 10 2 Catastrophic 3 | . 1 . 2 . . . . . . . Database Lockouts . | . . . . . . . . . . . Manual 66 | . 7 . 16 . 1 . 16 8 16 2 Terminals 69 | . 10 . 17 . . . 17 9 14 2 Fabricators 1 | . . . . . . . . . . 1 Repair Stations 25 | . . . 8 . . . 10 . 4 3 Recycling Units 9 | . . . . . . . . 1 8 . Scanalyzers 15 | . . . 9 . . . 6 . . . Garrison Access 2 | . . . . . . . . . 2 . Terminal Hacks 26 | . 2 . 8 . 1 . 5 3 6 1 Record 1 | . . . . . . . 1 . . . Level Access Points 2 | . . . . . . . 1 . 1 . Branch Access Points 1 | . . . 1 . . . . . . . Machine Index 1 | . . . 1 . . . . . . . Terminal Index 6 | . 1 . 1 . . . 1 1 1 1 Repair Station Index 2 | . . . . . . . 1 . 1 . Alert Level 3 | . . . . . . . . 2 1 . Locate Traps 2 | . . . 1 . . . 1 . . . Recall Investigation 2 | . . . 2 . . . . . . . Recall Extermination 1 | . . . . . . . . . 1 . Recall Reinforcements 2 | . . . 2 . . . . . . . Zone Layout 2 | . 1 . . . . . . . 1 . EX-Prototype ID Bank 1 | . . . . . 1 . . . . . Fabricator Hacks 1 | . . . . . . . . . . 1 Build 1 | . . . . . . . . . . 1 Repair Station Hacks 21 | . . . 5 . . . 10 . 4 2 Scan Component 11 | . . . 3 . . . 5 . 2 1 Repair 10 | . . . 2 . . . 5 . 2 1 Recycling Unit Hacks 7 | . . . . . . . . 1 6 . Recycle Component 1 | . . . . . . . . . 1 . Process 2 | . . . . . . . . . 2 . Retrieve Matter 2 | . . . . . . . . . 2 . Retrieve Components 2 | . . . . . . . . 1 1 . Scanalyzer 15 | . . . 9 . . . 6 . . . Insert Component 7 | . . . 4 . . . 3 . . . Analyze 8 | . . . 5 . . . 3 . . . Garrison Access Hacks . | . . . . . . . . . . . Unauthorized Hacks 12 | . 2 . 1 . . . 4 3 2 . Terminals 11 | . 2 . 1 . . . 4 3 1 . Assimilate 4 | . . . . . . . 1 2 1 . Botnet 7 | . 2 . 1 . . . 3 1 . . Fabricators . | . . . . . . . . . . . Repair Stations . | . . . . . . . . . . . Recycling Units . | . . . . . . . . . . . Scanalyzers . | . . . . . . . . . . . Garrison Access 1 | . . . . . . . . . 1 . Reprogram 1 | . . . . . . . . . 1 . Data Cores Recovered . | . . . . . . . . . . . Used . | . . . . . . . . . . . Hacking Detections 35 | . 2 . 9 . . . 10 3 9 2 Full Trace Events 10 | . 2 . 3 . . . 2 1 1 1 Feedback Events 1 | . 1 . . . . . . . . . Corruption 1 | . 1 . . . . . . . . . Feedback Blocked . | . . . . . . . . . . . Robot Schematics Acquired . | . . . . . . . . . . . Robots Built . | . . . . . . . . . . . Authchips . | . . . . . . . . . . . Time . | . . . . . . . . . . . Total Robot Build Rating . | . . . . . . . . . . . Part Schematics Acquired 7 | . . . 4 . . . 3 . . . Parts Built 2 | . . . . . . . . . . 2 Authchips . | . . . . . . . . . . . Time 64 | . . . . . . . . . . 64 Total Part Build Rating 16 | . . . . . . . . . . 16 Parts Repaired 10 | . . . 2 . . . 5 . 2 1 Time 341 | . . . 58 . . . 178 . 86 19 Parts Recycled 1 | . . . . . . . . . 1 . Recycled Matter 158 | . . . . . . . . . 158 . Retrieved Matter 138 | . . . . . . . . . 138 . Retrieved Components 7 | . . . . . . . . 7 . . Parts Scanalyzed 7 | . . . 4 . . . 3 . . . Part Schematics Acquired 7 | . . . 4 . . . 3 . . . Parts Damaged 1 | . . . 1 . . . . . . . Bothacking | -11 -10 -10 -9 -9 -9 -8 -8 -7 -6 -5 ------------ Run | Jun Mat Min Mat Min Exi Min Mat Fac Fac Fac Used RIF Installer . | . . . . . . . . . . . Robots Hacked . | . . . . . . . . . . . Non-combat . | . . . . . . . . . . . Combat . | . . . . . . . . . . . Robot Hacks Applied . | . . . . . . . . . . . Relay Couplers Released . | . . . . . . . . . . . Fabnet Peak Effective % . | . . . . . . . . . . . Robots Rewired . | . . . . . . . . . . . Allies Hacked 3 | . . . . . . . . . 3 . Hacks Repelled . | . . . . . . . . . . . Allies | -11 -10 -10 -9 -9 -9 -8 -8 -7 -6 -5 -------- Run | Jun Mat Min Mat Min Exi Min Mat Fac Fac Fac Total Allies 11 | . . 5 . . . . 1 1 4 . Largest Group 4 | . . 4 3 . . . 1 1 3 . Highest-Rated Group 87 | . . 57 40 . . . 26 24 87 . Highest-Rated Ally 31 | . . 31 16 . . . 26 24 29 . Total Orders . | . . . . . . . . . . . Ally Attacks 94 | . . 8 58 . . . . . 28 . Total Damage 1176 | . . 125 603 . . . . . 448 . Kills 16 | . . 1 12 . . . . . 3 . Allies Corrupted 1 | . . . . . . . . . 1 . Allies Melted . | . . . . . . . . . . . Intel | -11 -10 -10 -9 -9 -9 -8 -8 -7 -6 -5 ------- Run | Jun Mat Min Mat Min Exi Min Mat Fac Fac Fac Robot Analysis Total . | . . . . . . . . . . . Derelict Logs Recovered 2 | . . 1 . 1 . . . . . . Drone Launches . | . . . . . . . . . . . Drone Recoveries . | . . . . . . . . . . . Exploration | -11 -10 -10 -9 -9 -9 -8 -8 -7 -6 -5 ------------- Run | Jun Mat Min Mat Min Exi Min Mat Fac Fac Fac Turns Passed 18053 | 88 1587 401 2982 800 375 864 2355 2254 3895 2452 Spaces Moved 7019 | 52 676 227 1450 424 234 347 687 775 1331 816 Core 6 | 6 . . . . . . . . . . Treads 6484 | 46 676 227 1450 424 234 347 352 775 1331 622 Legs . | . . . . . . . . . . . Wheels 370 | . . . . . . . 335 . . 35 Hover 159 | . . . . . . . . . . 159 Flight . | . . . . . . . . . . . Fastest Speed 50 | 50 160 160 160 160 160 160 125 240 240 123 Average Speed 203 | 147 160 160 173 161 160 236 184 240 240 246 Slowest Speed 740 | 160 160 160 240 240 160 240 400 240 240 740 Overloaded Moves . | . . . . . . . . . . . Propulsion Burnouts . | . . . . . . . . . . . Robots Hopped . | . . . . . . . . . . . Cave-ins Triggered . | . . . . . . . . . . . Exploration Rate (%) 48 | 4 79 53 86 76 62 70 39 17 26 26 Regions Visited 10 Branch Regions 4 Pre-discovered Areas 1 | . . . . 1 . . . . . . Known Exits Taken 3 | . . . 1 . . . 1 . 1 . Unknown Exits Taken 7 | 1 1 1 . 1 1 1 . 1 . . Scrap Searched 3 | . . 1 . 1 . 1 . . . . Spaces Dug 14 | . . . 2 . . . 6 1 2 3 Terrain Destroyed 514 | . . 5 52 80 . 7 54 25 80 211 Melee . | . . . . . . . . . . . Projectile 218 | . . 5 40 21 . 7 44 25 42 34 AOE 296 | . . . 12 59 . . 10 . 38 177 Terrain Rammed . | . . . . . . . . . . . Walls Destroyed . | . . . . . . . . . . . Machines Disabled . | . . . . . . . . . . . Actions | -11 -10 -10 -9 -9 -9 -8 -8 -7 -6 -5 --------- Run | Jun Mat Min Mat Min Exi Min Mat Fac Fac Fac Total 9895 | 61 1063 246 1757 486 235 372 1652 1061 1868 1094 Wait 1984 | . 295 3 122 1 . 7 854 193 392 117 Move 7009 | 51 675 226 1449 423 233 346 686 774 1330 816 Hop . | . . . . . . . . . . . Pick Up 72 | 4 7 3 22 2 1 . 9 7 8 9 Fast Attach 47 | 6 5 1 7 6 . . 8 . 6 8 Attach 62 | . 1 . 10 5 . 3 1 4 13 25 Detach 23 | . 1 1 4 3 . 1 2 . 4 7 Swap 25 | . 3 1 4 . . 1 5 5 3 3 Drop 49 | . 1 . 22 7 1 . 7 3 2 6 Fire 586 | . 72 10 108 38 . 13 78 68 98 101 Melee . | . . . . . . . . . . . Ram . | . . . . . . . . . . . Kick . | . . . . . . . . . . . Crush 37 | . 3 1 9 1 . 1 2 6 12 2 Escape Stasis . | . . . . . . . . . . . Rewire 1 | . . . . . . . . 1 . . Trap . | . . . . . . . . . . . Miscellaneous . | . . . . . . . . . . . Route ------- -11/Junkyard -10/Materials (discovered 2 exits: [*Min x2]) -10/Mines -9/Materials (discovered 3 exits: *Mat x2 / *Min) -9/Mines (discovered 2 exits: *Mat / *Exi) -9/Exiles (discovered 2 exits: [*Min x2]) -8/Mines -8/Materials (discovered 4 exits: *Fac x3 / *Sto) -7/Factory -6/Factory (discovered 5 exits: *Fac x4 / [*Low]) -5/Factory (discovered 1 exit: [*Upp]) History --------- Turn | Location | Event 3 | -11/Junkyard | Discovered new exit (range 15) 89 | -11/Junkyard | Entered Materials 245 | -10/Materials | Discovered new exit (range 11) 311 | -10/Materials | Build established: Mutant 783 | -10/Materials | Discovered new exit (range 13) 1676 | -10/Materials | Entered Mines 1697 | -10/Mines | A weapon hastily lodged in a ceiling crevice suddenly fell to the ground 1799 | -10/Mines | Found a hidden stash of uninstalled traps 1960 | -10/Mines | Assisted by bots powering up and referring to "LRC-V3" 2056 | -10/Mines | Discovered new exit (range 10) 2063 | -10/Mines | Received a Rocket Launcher from a helpful Derelict 2077 | -10/Mines | Entered Materials 2077 | -9/Materials | Accompanied by 3 allies 2077 | -9/Materials | Evolved 2 slots: Utility x2 2776 | -9/Materials | Discovered new exit (range 11) 3435 | -9/Materials | Repaired Broken Hvy. Assault Cannon 3894 | -9/Materials | Build established: Hacker-Mutant 3927 | -9/Materials | Identified exit to Mines 4362 | -9/Materials | Discovered new exit (range 6) 4600 | -9/Materials | Discovered new exit (range 13) 4800 | -9/Materials | Repaired Imp. Treads 4877 | -9/Materials | First assault squad dispatched 5059 | -9/Materials | Entered Mines 5341 | -9/Mines | Core integrity fell below 50% 5520 | -9/Mines | Learned location of Zion (-6) 5758 | -9/Mines | Discovered new exit (range 6) 5851 | -9/Mines | Deemed a non-threat by the Exiles lab entrance 5852 | -9/Mines | Discovered new exit (range 5) 5859 | -9/Mines | Entered Exiles 5880 | -9/Exiles | Discovered new exit (range 15) 5899 | -9/Exiles | Met 8R-AWN 5927 | -9/Exiles | Met EX-HEX 5978 | -9/Exiles | Met EX-BIN 5997 | -9/Exiles | Aligned with FarCom system 5999 | -9/Exiles | Given EX-Vault access code 6037 | -9/Exiles | Opened EX-Vault 6052 | -9/Exiles | Found Modified TNC 6087 | -9/Exiles | Warned to stay clear of 0b10 Research branches 6133 | -9/Exiles | Met EX-DEC 6216 | -9/Exiles | Discovered new exit (range 14) 6234 | -9/Exiles | Left Exiles lab with Modified TNC 6234 | -9/Exiles | Entered Mines 6760 | -8/Mines | Build established: Scavenger-Mutant 7077 | -8/Mines | Discovered new exit (range 9) 7098 | -8/Mines | Entered Materials 7098 | -8/Materials | Evolved 2 slots: Propulsion x1, Utility x1 7099 | -8/Materials | Identified exit to Storage 7202 | -8/Materials | Repaired Hvy. Assault Cannon 7241 | -8/Materials | Repaired Hvy. Assault Cannon 7592 | -8/Materials | Identified exit to Factory 8950 | -8/Materials | Repaired Shield Generator 8989 | -8/Materials | Repaired Hvy. Assault Cannon 9215 | -8/Materials | Repaired Hrd. Light Armor Plating 9453 | -8/Materials | Entered Factory 9453 | -7/Factory | Accompanied by 1 ally 9453 | -7/Factory | Evolved 2 slots: Power x1, Utility x1 9754 | -7/Factory | Build established: Hacker-Mutant 10682 | -7/Factory | Discovered new exit (range 15) 11304 | -7/Factory | P-60 Hacker assimilated allied Technician 4a 11707 | -7/Factory | Entered another Factory area 11707 | -6/Factory | Evolved 2 slots: Propulsion x1, Utility x1 12787 | -6/Factory | Discovered new exit (range 5) 12851 | -6/Factory | Repaired Shield Generator 12946 | -6/Factory | Lost 3 parts (3n) 13613 | -6/Factory | Repaired Hvy. Deuterium Engine 13761 | -6/Factory | Identified exit to Factory 14805 | -6/Factory | Lost 4 parts (1n3u) 15466 | -6/Factory | System corruption reached 10% 15602 | -6/Factory | Entered another Factory area 15602 | -5/Factory | Evolved 2 slots: Utility x2 16138 | -5/Factory | Repaired Hvy. Assault Cannon 16487 | -5/Factory | Discovered new exit (range 4) 16659 | -5/Factory | Fabricated Quantum Rifle (x2) 16668 | -5/Factory | Spotted B-75 Beast 17327 | -5/Factory | Destroyed 8 combat bots 17335 | -5/Factory | Lost 4 parts (1p1n2u) 17702 | -5/Factory | First assault squad dispatched 17833 | -5/Factory | System corruption reached 10% 17865 | -5/Factory | Lost 12 parts (2p4n4u2w) 17891 | -5/Factory | Core integrity fell below 50% 17953 | -5/Factory | Lost 5 parts (3n1u1w) 17990 | -5/Factory | Cargo convoy interrupted 18054 | -5/Factory | Self-destructed Last Messages --------------- 17988_ U-05 Engineer lays Concrete. 17990_ ALERT: Cargo convoy interrupted, initiating access lockdown. 17990_ R-10 Processor collects Imp. Remote Datajack. 17990_ U-05 Engineer builds a Wall. 17991_ System corrupted: Matter fused (-5). 17991_ U-05 Engineer builds a Wall. 17991_ K-01 Serf collects debris. 17992_ U-05 Engineer builds a Wall. 17997_ U-05 Engineer builds a Door. 17998_ U-05 Engineer builds a Wall. 18002_ ALERT: Significant disruption in Zone 1N, assault force dispatched. 18007_ System corrupted: Energy discharge (-270). 18013_ U-05 Engineer lays Concrete. 18046_ WL#J|Y